[Event "Titled Tuesday Blitz May 23 Early 2023"]
[White "Rodriguez, Santiago"]
[Black "Sielecki, Christof"]
[WhiteFideId "3000591"]
[BlackFideId "4620437"]
[WhiteElo "2249"]
[BlackElo "2443"]
[Result "1/2-1/2"]
[Round "03"]
[TimeControl "180+2"]
[Date "2023.05.23"]
[WhiteClock "0:00:10"]
[BlackClock "0:00:15"]

1. d4 {[%clk 0:03:00]}  d5 {[%clk 0:02:58]} 2. Bf4 {[%clk 0:03:00]}  Nf6 {[%clk 0:02:57]} 3. e3 {[%clk 0:03:00]}  e6 {[%clk 0:02:57]} 4. Nf3 {[%clk 0:02:58]}  Bd6 {[%clk 0:02:57]} 5. Ne5 {[%clk 0:02:57]}  O-O {[%clk 0:02:53]} 6. Nd2 {[%clk 0:02:57]}  c5 {[%clk 0:02:52]} 7. c3 {[%clk 0:02:54]}  Nc6 {[%clk 0:02:52]} 8. Bd3 {[%clk 0:02:51]}  Qc7 {[%clk 0:02:50]} 9. Ndf3 {[%clk 0:02:49]}  cxd4 {[%clk 0:02:50]} 10. cxd4 {[%clk 0:02:41]}  Qa5+ {[%clk 0:02:43]} 11. Ke2 {[%clk 0:02:36]}  Nb4 {[%clk 0:02:41]} 12. Qd2 {[%clk 0:02:21]}  Ne4 {[%clk 0:02:41]} 13. Bxe4 {[%clk 0:02:15]}  dxe4 {[%clk 0:02:42]} 14. Ng5 {[%clk 0:02:12]}  Bxe5 {[%clk 0:02:27]} 15. Bxe5 {[%clk 0:02:06]}  f6 {[%clk 0:02:19]} 16. a3 {[%clk 0:01:43]}  Qb5+ {[%clk 0:02:14]} 17. Kd1 {[%clk 0:01:38]}  Nd3 {[%clk 0:02:01]} 18. Bd6 {[%clk 0:01:29]}  Qxg5 {[%clk 0:01:32]} 19. Bxf8 {[%clk 0:01:28]}  Kxf8 {[%clk 0:01:25]} 20. f3 {[%clk 0:01:28]}  Bd7 {[%clk 0:01:07]} 21. fxe4 {[%clk 0:01:25]}  Ba4+ {[%clk 0:00:50]} 22. Ke2 {[%clk 0:01:20]}  Qh5+ {[%clk 0:00:38]} 23. Kf1 {[%clk 0:01:10]}  Bb5 {[%clk 0:00:35]} 24. Kg1 {[%clk 0:01:08]}  Rc8 {[%clk 0:00:21]} 25. h3 {[%clk 0:01:00]}  Qg6 {[%clk 0:00:17]} 26. Kh2 {[%clk 0:00:39]}  Qxe4 {[%clk 0:00:17]} 27. a4 {[%clk 0:00:37]}  Bc6 {[%clk 0:00:16]} 28. b4 {[%clk 0:00:31]}  Bd5 {[%clk 0:00:16]} 29. Rhd1 {[%clk 0:00:20]}  Bc4 {[%clk 0:00:16]} 30. b5 {[%clk 0:00:17]}  Kf7 {[%clk 0:00:16]} 31. Ra3 {[%clk 0:00:17]}  f5 {[%clk 0:00:16]} 32. Rxd3 {[%clk 0:00:15]}  Bxd3 {[%clk 0:00:17]} 33. Qxd3 {[%clk 0:00:16]}  Ke7 {[%clk 0:00:17]} 34. Qa3+ {[%clk 0:00:14]}  Kf7 {[%clk 0:00:16]} 35. Rc1 {[%clk 0:00:14]}  Rxc1 {[%clk 0:00:14]} 36. Qxc1 {[%clk 0:00:15]}  g5 {[%clk 0:00:14]} 37. Qc7+ {[%clk 0:00:15]}  Kf6 {[%clk 0:00:15]} 38. Qd8+ {[%clk 0:00:12]}  Kg6 {[%clk 0:00:14]} 39. Qe8+ {[%clk 0:00:11]}  Kf6 {[%clk 0:00:14]} 40. Qf8+ {[%clk 0:00:10]}  Kg6 {[%clk 0:00:15]} 41. Qe8+ {[%clk 0:00:10]}  Kf6 {[%clk 0:00:15]} 42. Qf8+ {[%clk 0:00:10]}  Kg6 {[%clk 0:00:15]} 43. Qe8+ {[%clk 0:00:10]} 1/2-1/2


[Site "https://www.chess.com"]

[Event "Titled Tuesday Blitz May 23 Early 2023"]
[White "Zacurdajev, Dmitry"]
[Black "HamedWafa4"]
[WhiteFideId "4196309"]
[WhiteElo "2240"]
[BlackElo "2596"]
[Result "1/2-1/2"]
[Round "03"]
[TimeControl "180+2"]
[Date "2023.05.23"]
[WhiteClock "0:00:06"]
[BlackClock "0:00:11"]

1. d4 {[%clk 0:03:00]}  Nf6 {[%clk 0:02:57]} 2. c4 {[%clk 0:03:00]}  e6 {[%clk 0:02:57]} 3. Nc3 {[%clk 0:03:01]}  Bb4 {[%clk 0:02:56]} 4. Qc2 {[%clk 0:03:02]}  O-O {[%clk 0:02:56]} 5. a3 {[%clk 0:03:02]}  Bxc3+ {[%clk 0:02:54]} 6. Qxc3 {[%clk 0:03:03]}  b6 {[%clk 0:02:54]} 7. Bg5 {[%clk 0:02:59]}  Bb7 {[%clk 0:02:54]} 8. f3 {[%clk 0:03:00]}  c5 {[%clk 0:02:52]} 9. e3 {[%clk 0:03:00]}  cxd4 {[%clk 0:02:51]} 10. exd4 {[%clk 0:02:59]}  d5 {[%clk 0:02:51]} 11. Nh3 {[%clk 0:02:38]}  Nbd7 {[%clk 0:02:48]} 12. cxd5 {[%clk 0:02:25]}  Rc8 {[%clk 0:02:41]} 13. Qd2 {[%clk 0:02:19]}  h6 {[%clk 0:02:07]} 14. dxe6 {[%clk 0:02:07]}  Re8 {[%clk 0:02:04]} 15. Kf2 {[%clk 0:01:23]}  hxg5 {[%clk 0:01:42]} 16. exd7 {[%clk 0:01:22]}  Qxd7 {[%clk 0:01:43]} 17. Nxg5 {[%clk 0:01:17]}  Rcd8 {[%clk 0:00:31]} 18. Bc4 {[%clk 0:01:12]}  Bd5 {[%clk 0:00:31]} 19. Bxd5 {[%clk 0:00:58]}  Qxd5 {[%clk 0:00:30]} 20. Rad1 {[%clk 0:00:55]}  Qf5 {[%clk 0:00:27]} 21. Rhe1 {[%clk 0:00:35]}  Nd5 {[%clk 0:00:26]} 22. Rxe8+ {[%clk 0:00:18]}  Rxe8 {[%clk 0:00:26]} 23. Re1 {[%clk 0:00:17]}  Rxe1 {[%clk 0:00:24]} 24. Kxe1 {[%clk 0:00:18]}  Qb1+ {[%clk 0:00:18]} 25. Kf2 {[%clk 0:00:17]}  g6 {[%clk 0:00:18]} 26. Qe2 {[%clk 0:00:16]}  Qf5 {[%clk 0:00:17]} 27. Qe8+ {[%clk 0:00:15]}  Kg7 {[%clk 0:00:18]} 28. Qe5+ {[%clk 0:00:15]}  Qxe5 {[%clk 0:00:15]} 29. dxe5 {[%clk 0:00:16]}  Nf4 {[%clk 0:00:16]} 30. Ke3 {[%clk 0:00:11]}  Nxg2+ {[%clk 0:00:16]} 31. Ke4 {[%clk 0:00:11]}  Ne1 {[%clk 0:00:16]} 32. e6 {[%clk 0:00:10]}  fxe6 {[%clk 0:00:13]} 33. Nxe6+ {[%clk 0:00:11]}  Kf6 {[%clk 0:00:14]} 34. Nd8 {[%clk 0:00:10]}  Nc2 {[%clk 0:00:13]} 35. Nc6 {[%clk 0:00:10]}  a5 {[%clk 0:00:14]} 36. Nd4 {[%clk 0:00:10]}  Ne1 {[%clk 0:00:12]} 37. b4 {[%clk 0:00:10]}  a4 {[%clk 0:00:11]} 38. Ne2 {[%clk 0:00:07]}  Nc2 {[%clk 0:00:11]} 39. Nc3 {[%clk 0:00:08]}  Nxa3 {[%clk 0:00:11]} 40. Nxa4 {[%clk 0:00:08]}  Nc2 {[%clk 0:00:10]} 41. Nxb6 {[%clk 0:00:08]}  Nxb4 {[%clk 0:00:10]} 42. Nd5+ {[%clk 0:00:09]}  Nxd5 {[%clk 0:00:10]} 43. Kxd5 {[%clk 0:00:10]}  Kf5 {[%clk 0:00:11]} 44. Kd6 {[%clk 0:00:05]}  Kf4 {[%clk 0:00:11]} 45. Ke6 {[%clk 0:00:06]}  Kxf3 {[%clk 0:00:09]} 46. Kf6 {[%clk 0:00:06]}  Kg4 {[%clk 0:00:10]} 47. Kxg6 {[%clk 0:00:07]}  Kh3 {[%clk 0:00:11]} 48. Kg5 {[%clk 0:00:06]}  Kxh2 {[%clk 0:00:11]} 1/2-1/2


[Site "https://www.chess.com"]

[Event "Titled Tuesday Blitz May 23 Early 2023"]
[White "Bagrationi, Alexander"]
[Black "Vovk, Orest"]
[WhiteFideId "14104954"]
[BlackFideId "14113490"]
[WhiteElo "2398"]
[BlackElo "2215"]
[Result "0-1"]
[Round "03"]
[TimeControl "180+2"]
[Date "2023.05.23"]
[WhiteClock "0:00:00"]
[BlackClock "0:00:07"]

1. d4 {[%clk 0:01:07]}  h6 {[%clk 0:02:49]} 2. c4 {[%clk 0:01:07]}  g5 {[%clk 0:02:50]} 3. Nc3 {[%clk 0:01:07]}  Bg7 {[%clk 0:02:50]} 4. h4 {[%clk 0:01:07]}  c5 {[%clk 0:02:46]} 5. dxc5 {[%clk 0:01:05]}  Bxc3+ {[%clk 0:02:39]} 6. bxc3 {[%clk 0:01:05]}  g4 {[%clk 0:02:37]} 7. e4 {[%clk 0:00:59]}  Qa5 {[%clk 0:02:35]} 8. Bd2 {[%clk 0:00:54]}  g3 {[%clk 0:02:25]} 9. fxg3 {[%clk 0:00:48]}  Qxc5 {[%clk 0:02:22]} 10. Nf3 {[%clk 0:00:47]}  Nf6 {[%clk 0:02:16]} 11. Bd3 {[%clk 0:00:45]}  Rg8 {[%clk 0:01:59]} 12. e5 {[%clk 0:00:38]}  Ng4 {[%clk 0:01:58]} 13. Qe2 {[%clk 0:00:38]}  Nc6 {[%clk 0:01:57]} 14. Bf4 {[%clk 0:00:38]}  b6 {[%clk 0:01:44]} 15. Bh7 {[%clk 0:00:36]}  Rg7 {[%clk 0:01:41]} 16. Bf5 {[%clk 0:00:31]}  Ba6 {[%clk 0:01:36]} 17. Bxg4 {[%clk 0:00:23]}  Bxc4 {[%clk 0:01:26]} 18. Qf2 {[%clk 0:00:03]}  Qxf2+ {[%clk 0:01:21]} 19. Kxf2 {[%clk 0:00:04]}  Rxg4 {[%clk 0:01:21]} 20. Bxh6 {[%clk 0:00:05]}  O-O-O {[%clk 0:01:05]} 21. Bf4 {[%clk 0:00:05]}  f6 {[%clk 0:00:57]} 22. exf6 {[%clk 0:00:05]}  exf6 {[%clk 0:00:58]} 23. h5 {[%clk 0:00:06]}  Rh8 {[%clk 0:00:57]} 24. h6 {[%clk 0:00:06]}  Rh7 {[%clk 0:00:55]} 25. Rae1 {[%clk 0:00:07]}  Ne7 {[%clk 0:00:48]} 26. Rxe7 {[%clk 0:00:06]}  Rxe7 {[%clk 0:00:46]} 27. h7 {[%clk 0:00:06]}  Rxh7 {[%clk 0:00:44]} 28. Rxh7 {[%clk 0:00:06]}  Bxa2 {[%clk 0:00:44]} 29. Nd4 {[%clk 0:00:07]}  a5 {[%clk 0:00:33]} 30. Nb5 {[%clk 0:00:07]}  Kb7 {[%clk 0:00:29]} 31. Nd6+ {[%clk 0:00:04]}  Kc6 {[%clk 0:00:28]} 32. Rh8 {[%clk 0:00:05]}  a4 {[%clk 0:00:24]} 33. Ra8 {[%clk 0:00:05]}  Bb3 {[%clk 0:00:23]} 34. Nf5 {[%clk 0:00:04]}  Kb5 {[%clk 0:00:14]} 35. Nd4+ {[%clk 0:00:03]}  Kc4 {[%clk 0:00:13]} 36. Rb8 {[%clk 0:00:03]}  Kxc3 {[%clk 0:00:12]} 37. Nxb3 {[%clk 0:00:01]}  axb3 {[%clk 0:00:08]} 38. Rxb6 {[%clk 0:00:02]}  b2 {[%clk 0:00:07]} 39. Kf3 {[%clk 0:00:02]}  Rg8 {[%clk 0:00:07]} 40. Be3 {[%clk 0:00:00]}  Kc2 {[%clk 0:00:07]} 0-1


[Site "https://www.chess.com"]

[Event "Titled Tuesday Blitz May 23 Early 2023"]
[White "Kovalevsky, Stanislav"]
[Black "Bodnaruk, Anastasia"]
[WhiteFideId "13508598"]
[BlackFideId "4181751"]
[WhiteElo "2174"]
[BlackElo "2304"]
[Result "1-0"]
[Round "03"]
[TimeControl "180+2"]
[Date "2023.05.23"]
[WhiteClock "0:00:15"]
[BlackClock "0:00:00"]

1. c4 {[%clk 0:03:00]}  e5 {[%clk 0:02:51]} 2. Nc3 {[%clk 0:03:01]}  d6 {[%clk 0:02:51]} 3. g3 {[%clk 0:03:01]}  Nc6 {[%clk 0:02:50]} 4. Bg2 {[%clk 0:03:01]}  g6 {[%clk 0:02:50]} 5. d3 {[%clk 0:03:00]}  Bg7 {[%clk 0:02:50]} 6. h4 {[%clk 0:03:00]}  h5 {[%clk 0:02:48]} 7. Nf3 {[%clk 0:02:55]}  Nge7 {[%clk 0:02:33]} 8. O-O {[%clk 0:02:49]}  O-O {[%clk 0:02:32]} 9. Rb1 {[%clk 0:02:47]}  Nd4 {[%clk 0:02:23]} 10. b4 {[%clk 0:02:38]}  c6 {[%clk 0:02:20]} 11. Nxd4 {[%clk 0:02:33]}  exd4 {[%clk 0:02:20]} 12. Ne4 {[%clk 0:02:33]}  Bf5 {[%clk 0:02:17]} 13. b5 {[%clk 0:02:24]}  d5 {[%clk 0:01:57]} 14. cxd5 {[%clk 0:02:12]}  Nxd5 {[%clk 0:01:57]} 15. bxc6 {[%clk 0:02:12]}  bxc6 {[%clk 0:01:50]} 16. Bg5 {[%clk 0:01:56]}  Qd7 {[%clk 0:01:28]} 17. Qc2 {[%clk 0:01:29]}  Bxe4 {[%clk 0:01:08]} 18. Bxe4 {[%clk 0:01:28]}  Nc3 {[%clk 0:01:08]} 19. Rb4 {[%clk 0:00:54]}  Rfe8 {[%clk 0:00:55]} 20. Bf3 {[%clk 0:00:54]}  Re6 {[%clk 0:00:42]} 21. Rc4 {[%clk 0:00:37]}  Rae8 {[%clk 0:00:38]} 22. Kg2 {[%clk 0:00:36]}  Rxe2 {[%clk 0:00:25]} 23. Bxe2 {[%clk 0:00:23]}  Rxe2 {[%clk 0:00:25]} 24. Qb3 {[%clk 0:00:23]}  Qd5+ {[%clk 0:00:24]} 25. Kg1 {[%clk 0:00:21]}  Qf3 {[%clk 0:00:21]} 26. Qb8+ {[%clk 0:00:18]}  Kh7 {[%clk 0:00:22]} 27. Qf4 {[%clk 0:00:18]}  Qxd3 {[%clk 0:00:13]} 28. Rxc6 {[%clk 0:00:17]}  Rxa2 {[%clk 0:00:09]} 29. Qxf7 {[%clk 0:00:16]}  Ne2+ {[%clk 0:00:07]} 30. Kh2 {[%clk 0:00:16]}  Nxg3 {[%clk 0:00:05]} 31. Rg1 {[%clk 0:00:16]}  Qe4 {[%clk 0:00:02]} 32. Rxg3 {[%clk 0:00:15]}  Qxc6 {[%clk 0:00:00]} 33. Be7 {[%clk 0:00:15]} 1-0


[Site "https://www.chess.com"]

[Event "Titled Tuesday Blitz May 23 Early 2023"]
[White "Erzhanov, Arman"]
[Black "Szyszylo, Rafal"]
[WhiteFideId "4138821"]
[BlackFideId "1109626"]
[WhiteElo "2138"]
[BlackElo "1951"]
[Result "1/2-1/2"]
[Round "03"]
[TimeControl "180+2"]
[Date "2023.05.23"]
[WhiteClock "0:00:58"]
[BlackClock "0:01:22"]

1. e4 {[%clk 0:02:59]}  d6 {[%clk 0:03:00]} 2. g3 {[%clk 0:02:58]}  g6 {[%clk 0:03:00]} 3. Bg2 {[%clk 0:02:59]}  Nf6 {[%clk 0:03:00]} 4. Ne2 {[%clk 0:03:00]}  Bg7 {[%clk 0:03:00]} 5. O-O {[%clk 0:03:00]}  e5 {[%clk 0:03:00]} 6. f4 {[%clk 0:02:58]}  O-O {[%clk 0:02:59]} 7. h3 {[%clk 0:02:57]}  Nbd7 {[%clk 0:02:46]} 8. d3 {[%clk 0:02:55]}  exf4 {[%clk 0:02:28]} 9. gxf4 {[%clk 0:02:54]}  Nh5 {[%clk 0:02:27]} 10. Nbc3 {[%clk 0:02:40]}  f5 {[%clk 0:02:26]} 11. Be3 {[%clk 0:02:26]}  c6 {[%clk 0:02:09]} 12. Qe1 {[%clk 0:02:14]}  Ndf6 {[%clk 0:01:34]} 13. e5 {[%clk 0:02:06]}  dxe5 {[%clk 0:01:32]} 14. fxe5 {[%clk 0:02:07]}  Nd5 {[%clk 0:01:29]} 15. Nxd5 {[%clk 0:02:05]}  cxd5 {[%clk 0:01:29]} 16. Bc5 {[%clk 0:01:53]}  Rf7 {[%clk 0:01:24]} 17. d4 {[%clk 0:01:53]}  f4 {[%clk 0:01:23]} 18. Qc3 {[%clk 0:00:58]}  Be6 {[%clk 0:01:22]} 1/2-1/2


[Site "https://www.chess.com"]

[Event "Titled Tuesday Blitz May 23 Early 2023"]
[White "Kohler, Aran"]
[Black "Fiorito, Joaquin"]
[WhiteFideId "1002856"]
[BlackFideId "180173"]
[WhiteElo "2405"]
[BlackElo "2157"]
[Result "0-1"]
[Round "03"]
[TimeControl "180+2"]
[Date "2023.05.23"]
[WhiteClock "0:00:17"]
[BlackClock "0:01:15"]

1. d4 {[%clk 0:03:00]}  Nf6 {[%clk 0:02:59]} 2. Nf3 {[%clk 0:03:00]}  d5 {[%clk 0:02:59]} 3. Bg5 {[%clk 0:03:00]}  Ne4 {[%clk 0:02:59]} 4. Bf4 {[%clk 0:02:59]}  c5 {[%clk 0:02:59]} 5. e3 {[%clk 0:02:59]}  Nc6 {[%clk 0:02:58]} 6. c3 {[%clk 0:02:59]}  Qb6 {[%clk 0:02:58]} 7. Qb3 {[%clk 0:02:58]}  c4 {[%clk 0:02:58]} 8. Qxb6 {[%clk 0:02:49]}  axb6 {[%clk 0:02:58]} 9. Nbd2 {[%clk 0:02:49]}  Nxd2 {[%clk 0:02:41]} 10. Kxd2 {[%clk 0:02:25]}  b5 {[%clk 0:02:41]} 11. Be2 {[%clk 0:02:06]}  h6 {[%clk 0:02:32]} 12. a3 {[%clk 0:02:02]}  Bf5 {[%clk 0:02:31]} 13. Ne5 {[%clk 0:01:52]}  Na5 {[%clk 0:02:26]} 14. Bd1 {[%clk 0:01:43]}  e6 {[%clk 0:02:18]} 15. Rc1 {[%clk 0:01:39]}  f6 {[%clk 0:02:14]} 16. Nf3 {[%clk 0:01:19]}  Kd7 {[%clk 0:02:14]} 17. h3 {[%clk 0:01:19]}  Be7 {[%clk 0:02:11]} 18. Bh2 {[%clk 0:01:14]}  g5 {[%clk 0:02:06]} 19. Rg1 {[%clk 0:01:04]}  h5 {[%clk 0:02:01]} 20. Ne1 {[%clk 0:01:04]}  Bd6 {[%clk 0:01:34]} 21. Bxd6 {[%clk 0:00:59]}  Kxd6 {[%clk 0:01:35]} 22. f3 {[%clk 0:00:59]}  e5 {[%clk 0:01:32]} 23. dxe5+ {[%clk 0:00:50]}  fxe5 {[%clk 0:01:31]} 24. Ke2 {[%clk 0:00:46]}  g4 {[%clk 0:01:26]} 25. hxg4 {[%clk 0:00:44]}  hxg4 {[%clk 0:01:26]} 26. Kf2 {[%clk 0:00:45]}  Rag8 {[%clk 0:01:21]} 27. fxg4 {[%clk 0:00:30]}  Bxg4 {[%clk 0:01:19]} 28. Bxg4 {[%clk 0:00:30]}  Rxg4 {[%clk 0:01:20]} 29. Nf3 {[%clk 0:00:30]}  Rf8 {[%clk 0:01:19]} 30. Ke2 {[%clk 0:00:25]}  Nb3 {[%clk 0:01:19]} 31. Rcd1 {[%clk 0:00:25]}  Nc5 {[%clk 0:01:18]} 32. Ne1 {[%clk 0:00:22]}  Ne4 {[%clk 0:01:17]} 33. Rf1 {[%clk 0:00:17]}  Ng3+ {[%clk 0:01:15]} 0-1


[Site "https://www.chess.com"]

[Event "Titled Tuesday Blitz May 23 Early 2023"]
[White "Jakubowska, Anna"]
[Black "Thecourseoisildur"]
[WhiteFideId "1121952"]
[WhiteElo "2001"]
[BlackElo "2585"]
[Result "1-0"]
[Round "03"]
[TimeControl "180+2"]
[Date "2023.05.23"]
[WhiteClock "0:00:41"]
[BlackClock "0:00:00"]

1. e4 {[%clk 0:03:00]}  e5 {[%clk 0:02:58]} 2. Nc3 {[%clk 0:03:00]}  Nf6 {[%clk 0:02:57]} 3. g3 {[%clk 0:03:00]}  d5 {[%clk 0:02:53]} 4. exd5 {[%clk 0:02:59]}  Nxd5 {[%clk 0:02:54]} 5. Bg2 {[%clk 0:02:59]}  Nxc3 {[%clk 0:02:50]} 6. bxc3 {[%clk 0:03:00]}  Bc5 {[%clk 0:02:49]} 7. Ne2 {[%clk 0:02:59]}  Nc6 {[%clk 0:02:45]} 8. O-O {[%clk 0:02:58]}  O-O {[%clk 0:02:45]} 9. Rb1 {[%clk 0:02:57]}  Bb6 {[%clk 0:02:45]} 10. d3 {[%clk 0:02:56]}  Be6 {[%clk 0:02:41]} 11. c4 {[%clk 0:02:53]}  Qc8 {[%clk 0:02:31]} 12. Nc3 {[%clk 0:02:49]}  Bh3 {[%clk 0:02:27]} 13. Ba3 {[%clk 0:02:30]}  Bxg2 {[%clk 0:02:09]} 14. Kxg2 {[%clk 0:02:29]}  Rd8 {[%clk 0:02:01]} 15. Qh5 {[%clk 0:02:22]}  Nd4 {[%clk 0:01:38]} 16. Ne4 {[%clk 0:02:13]}  Nxc2 {[%clk 0:00:33]} 17. Be7 {[%clk 0:02:04]}  Rxd3 {[%clk 0:00:16]} 18. Nf6+ {[%clk 0:01:37]}  gxf6 {[%clk 0:00:16]} 19. Bxf6 {[%clk 0:01:38]}  Qe6 {[%clk 0:00:11]} 20. Qh6 {[%clk 0:01:26]}  Qg4 {[%clk 0:00:11]} 21. Bxe5 {[%clk 0:01:05]}  Qg6 {[%clk 0:00:08]} 22. Qf4 {[%clk 0:01:02]}  Rad8 {[%clk 0:00:06]} 23. Rb5 {[%clk 0:00:58]}  Rd2 {[%clk 0:00:05]} 24. Kh1 {[%clk 0:00:54]}  Qc6+ {[%clk 0:00:03]} 25. Rd5 {[%clk 0:00:51]}  R8xd5 {[%clk 0:00:01]} 26. cxd5 {[%clk 0:00:50]}  Qxd5+ {[%clk 0:00:02]} 27. Kg1 {[%clk 0:00:50]}  Qe6 {[%clk 0:00:01]} 28. Qg5+ {[%clk 0:00:46]}  Kf8 {[%clk 0:00:01]} 29. Bg7+ {[%clk 0:00:45]}  Ke8 {[%clk 0:00:01]} 30. Qxd2 {[%clk 0:00:45]}  Qc4 {[%clk 0:00:00]} 31. Rd1 {[%clk 0:00:41]} 1-0


[Site "https://www.chess.com"]

[Event "Titled Tuesday Blitz May 23 Early 2023"]
[White "Kotepalli, Sai Nirupama"]
[Black "Demin, Vladimir"]
[WhiteFideId "5039444"]
[BlackFideId "4167457"]
[WhiteElo "2378"]
[BlackElo "2565"]
[Result "1-0"]
[Round "03"]
[TimeControl "180+2"]
[Date "2023.05.23"]
[WhiteClock "0:00:05"]
[BlackClock "0:00:40"]

1. e4 {[%clk 0:02:57]}  e5 {[%clk 0:02:59]} 2. Nf3 {[%clk 0:02:54]}  Nc6 {[%clk 0:03:00]} 3. d3 {[%clk 0:02:49]}  Nf6 {[%clk 0:02:59]} 4. g3 {[%clk 0:02:48]}  Bc5 {[%clk 0:02:56]} 5. Bg2 {[%clk 0:02:43]}  d6 {[%clk 0:02:55]} 6. O-O {[%clk 0:02:41]}  O-O {[%clk 0:02:56]} 7. c3 {[%clk 0:02:40]}  a5 {[%clk 0:02:55]} 8. a4 {[%clk 0:02:39]}  h6 {[%clk 0:02:54]} 9. Na3 {[%clk 0:02:35]}  Ng4 {[%clk 0:02:40]} 10. h3 {[%clk 0:02:33]}  Nxf2 {[%clk 0:02:39]} 11. Rxf2 {[%clk 0:02:33]}  Bxf2+ {[%clk 0:02:40]} 12. Kxf2 {[%clk 0:02:34]}  f5 {[%clk 0:02:41]} 13. Qb3+ {[%clk 0:02:31]}  Kh7 {[%clk 0:02:38]} 14. Ke2 {[%clk 0:02:27]}  fxe4 {[%clk 0:02:37]} 15. dxe4 {[%clk 0:02:28]}  Qf6 {[%clk 0:02:34]} 16. g4 {[%clk 0:02:18]}  Qg6 {[%clk 0:02:23]} 17. Qc2 {[%clk 0:02:06]}  d5 {[%clk 0:02:02]} 18. exd5 {[%clk 0:02:01]}  e4 {[%clk 0:02:02]} 19. Nh4 {[%clk 0:01:57]}  Qf6 {[%clk 0:02:01]} 20. Bxe4+ {[%clk 0:01:50]}  Kg8 {[%clk 0:02:01]} 21. Bh7+ {[%clk 0:01:48]}  Kh8 {[%clk 0:01:53]} 22. Ng6+ {[%clk 0:01:47]}  Kxh7 {[%clk 0:01:53]} 23. Nxf8+ {[%clk 0:01:47]}  Kg8 {[%clk 0:01:54]} 24. dxc6 {[%clk 0:01:29]}  Qxf8 {[%clk 0:01:51]} 25. Be3 {[%clk 0:01:18]}  bxc6 {[%clk 0:01:49]} 26. Rf1 {[%clk 0:01:10]}  Ba6+ {[%clk 0:01:49]} 27. c4 {[%clk 0:01:10]}  Qb4 {[%clk 0:01:48]} 28. Qc3 {[%clk 0:01:05]}  Qxa4 {[%clk 0:01:47]} 29. Bd4 {[%clk 0:00:56]}  Re8+ {[%clk 0:01:45]} 30. Kd2 {[%clk 0:00:48]}  c5 {[%clk 0:01:45]} 31. Bxc5 {[%clk 0:00:36]}  Qc6 {[%clk 0:01:42]} 32. Bd4 {[%clk 0:00:31]}  Qg2+ {[%clk 0:01:41]} 33. Rf2 {[%clk 0:00:30]}  Qh1 {[%clk 0:01:37]} 34. Nc2 {[%clk 0:00:24]}  c5 {[%clk 0:01:23]} 35. Bxc5 {[%clk 0:00:19]}  Bb7 {[%clk 0:01:14]} 36. Bd4 {[%clk 0:00:10]}  Be4 {[%clk 0:01:08]} 37. Bxg7 {[%clk 0:00:10]}  Bxc2 {[%clk 0:01:03]} 38. Kxc2 {[%clk 0:00:10]}  Qe4+ {[%clk 0:01:03]} 39. Kc1 {[%clk 0:00:08]}  Qh1+ {[%clk 0:01:02]} 40. Kc2 {[%clk 0:00:07]}  Qe4+ {[%clk 0:01:02]} 41. Kb3 {[%clk 0:00:07]}  Qb7+ {[%clk 0:00:53]} 42. Ka2 {[%clk 0:00:07]}  Qxg7 {[%clk 0:00:53]} 43. Qxg7+ {[%clk 0:00:07]}  Kxg7 {[%clk 0:00:53]} 44. Rf5 {[%clk 0:00:08]}  a4 {[%clk 0:00:50]} 45. Ka3 {[%clk 0:00:07]}  Ra8 {[%clk 0:00:51]} 46. Rb5 {[%clk 0:00:05]}  Kg6 {[%clk 0:00:50]} 47. h4 {[%clk 0:00:04]}  Ra6 {[%clk 0:00:49]} 48. c5 {[%clk 0:00:03]}  Kg7 {[%clk 0:00:47]} 49. Rb6 {[%clk 0:00:04]}  Ra5 {[%clk 0:00:46]} 50. c6 {[%clk 0:00:04]}  Rc5 {[%clk 0:00:46]} 51. Rb7+ {[%clk 0:00:04]}  Kg6 {[%clk 0:00:45]} 52. c7 {[%clk 0:00:04]}  Rc4 {[%clk 0:00:46]} 53. b3 {[%clk 0:00:03]}  axb3 {[%clk 0:00:45]} 54. Kxb3 {[%clk 0:00:03]}  Rc1 {[%clk 0:00:46]} 55. Kb4 {[%clk 0:00:04]}  h5 {[%clk 0:00:44]} 56. gxh5+ {[%clk 0:00:03]}  Kxh5 {[%clk 0:00:44]} 57. Kb5 {[%clk 0:00:04]}  Kxh4 {[%clk 0:00:41]} 58. Kb6 {[%clk 0:00:05]}  Rb1+ {[%clk 0:00:42]} 59. Ka7 {[%clk 0:00:05]}  Rc1 {[%clk 0:00:40]} 60. Kb8 {[%clk 0:00:05]} 1-0


[Site "https://www.chess.com"]

[Event "Titled Tuesday Blitz May 23 Early 2023"]
[White "Pg, Mohd Omar Ak Hira"]
[Black "Spata, German"]
[WhiteFideId "10500103"]
[BlackFideId "113026"]
[WhiteElo "2167"]
[BlackElo "2260"]
[Result "0-1"]
[Round "03"]
[TimeControl "180+2"]
[Date "2023.05.23"]
[WhiteClock "0:00:15"]
[BlackClock "0:00:46"]

1. e4 {[%clk 0:03:00]}  e6 {[%clk 0:02:56]} 2. d4 {[%clk 0:03:00]}  d5 {[%clk 0:02:55]} 3. Nc3 {[%clk 0:03:00]}  dxe4 {[%clk 0:02:56]} 4. Nxe4 {[%clk 0:03:01]}  Bd7 {[%clk 0:02:57]} 5. Nf3 {[%clk 0:02:52]}  Bc6 {[%clk 0:02:56]} 6. Ng3 {[%clk 0:02:45]}  Nd7 {[%clk 0:02:56]} 7. Bd3 {[%clk 0:02:34]}  Ngf6 {[%clk 0:02:56]} 8. O-O {[%clk 0:02:33]}  Be7 {[%clk 0:02:56]} 9. c4 {[%clk 0:02:28]}  Bxf3 {[%clk 0:02:50]} 10. Qxf3 {[%clk 0:02:26]}  c6 {[%clk 0:02:51]} 11. Bd2 {[%clk 0:02:21]}  O-O {[%clk 0:02:50]} 12. Bc3 {[%clk 0:02:22]}  Re8 {[%clk 0:02:49]} 13. Rad1 {[%clk 0:02:21]}  Qb6 {[%clk 0:02:49]} 14. Bb1 {[%clk 0:02:16]}  Bb4 {[%clk 0:02:48]} 15. Ne4 {[%clk 0:02:05]}  Nxe4 {[%clk 0:02:42]} 16. Qxe4 {[%clk 0:01:58]}  Nf6 {[%clk 0:02:41]} 17. Qf3 {[%clk 0:01:53]}  Bxc3 {[%clk 0:02:41]} 18. Qxc3 {[%clk 0:01:53]}  Rad8 {[%clk 0:02:40]} 19. h3 {[%clk 0:01:39]}  Rd7 {[%clk 0:02:40]} 20. a4 {[%clk 0:01:18]}  Red8 {[%clk 0:02:38]} 21. a5 {[%clk 0:01:18]}  Qc7 {[%clk 0:02:35]} 22. Bc2 {[%clk 0:00:56]}  h6 {[%clk 0:02:20]} 23. b4 {[%clk 0:00:56]}  b6 {[%clk 0:02:19]} 24. axb6 {[%clk 0:00:55]}  axb6 {[%clk 0:02:19]} 25. f4 {[%clk 0:00:52]}  b5 {[%clk 0:02:18]} 26. f5 {[%clk 0:00:50]}  bxc4 {[%clk 0:02:17]} 27. fxe6 {[%clk 0:00:51]}  fxe6 {[%clk 0:02:17]} 28. Qxc4 {[%clk 0:00:51]}  Nd5 {[%clk 0:02:10]} 29. Qd3 {[%clk 0:00:51]}  Nf6 {[%clk 0:01:57]} 30. Qg6 {[%clk 0:00:49]}  Rf7 {[%clk 0:01:50]} 31. Rd3 {[%clk 0:00:44]}  Nh7 {[%clk 0:01:08]} 32. Rg3 {[%clk 0:00:37]}  Rxf1+ {[%clk 0:01:07]} 33. Kxf1 {[%clk 0:00:38]}  Ng5 {[%clk 0:01:02]} 34. Rxg5 {[%clk 0:00:34]}  hxg5 {[%clk 0:01:02]} 35. Qh7+ {[%clk 0:00:30]}  Kf7 {[%clk 0:00:58]} 36. Qg6+ {[%clk 0:00:30]}  Kf8 {[%clk 0:00:57]} 37. Kg1 {[%clk 0:00:24]}  Qf7 {[%clk 0:00:52]} 38. Qxg5 {[%clk 0:00:24]}  Qf6 {[%clk 0:00:53]} 39. Qc5+ {[%clk 0:00:23]}  Kg8 {[%clk 0:00:46]} 40. Bb3 {[%clk 0:00:21]}  Qxd4+ {[%clk 0:00:45]} 41. Qxd4 {[%clk 0:00:20]}  Rxd4 {[%clk 0:00:46]} 42. Bxe6+ {[%clk 0:00:15]}  Kf8 {[%clk 0:00:46]} 0-1


[Site "https://www.chess.com"]